bitfinex/quotes_BTCUSD_20241203
["timestamp","ask_amount","ask_price","bid_price","bid_amount"]
[1733239850735,0.00203955,96203.0,96201.0,0.22567446]
[1733239851163,0.00498665,96203.0,96201.0,0.18057496]
[1733239851369,0.207895,96202.0,96201.0,0.18057496]
[1733239851855,0.2108421,96202.0,96201.0,0.31601949]
[1733239852067,0.2108421,96202.0,96200.0,0.18057496]
[1733239852276,0.2108421,96202.0,96197.0,0.09023987]
[1733239852277,0.2108421,96202.0,96197.0,0.18055508]
[1733239852509,0.3608511,96198.0,96197.0,0.09023987]
[1733239853437,0.3608511,96198.0,96197.0,0.09923987]
[1733239853664,0.15,96200.0,96197.0,0.09923987]
[1733239853884,0.15,96200.0,96197.0,0.18955508]
[1733239853885,0.1529471,96198.0,96197.0,0.18955508]
[1733239854572,0.1529471,96198.0,96197.0,0.23495299]
[1733239854785,0.1529471,96198.0,96197.0,0.09023987]
[1733239855012,0.0029471,96198.0,96197.0,0.09523987]
[1733239855219,0.0029471,96198.0,96197.0,0.23095303]
[1733239855435,0.0029471,96198.0,96197.0,0.09023987]
[1733239855684,0.0029471,96218.0,96197.0,0.11155253]
[1733239855893,1.2008629,96279.0,96202.0,0.2]
[1733239855894,0.0029471,96221.0,96202.0,0.2]
[1733239856122,0.0029471,96221.0,96218.0,0.27135894]
[1733239856574,0.0029471,96221.0,96217.0,0.4002751]
[1733239857011,0.0029471,96221.0,96216.0,0.4002751]
[1733239857244,0.0029471,96221.0,96203.0,0.10471259]
[1733239857245,0.0029471,96221.0,96215.0,0.4002751]
[1733239857474,0.0029471,96221.0,96214.0,0.4002751]
[1733239857701,0.0029471,96221.0,96212.0,0.4002751]
[1733239857927,0.0029471,96221.0,96213.0,0.4002751]
[1733239858383,0.0029471,96221.0,96215.0,0.009]
[1733239858617,0.0029471,96221.0,96218.0,0.005]
[1733239859068,0.0029471,96221.0,96213.0,0.009]
[1733239859561,0.0029471,96221.0,96215.0,0.005]
[1733239860023,0.0029471,96221.0,96208.0,0.207882]
[1733239860238,0.0029471,96221.0,96213.0,0.005]
[1733239860661,0.0029471,96221.0,96218.0,0.0009934]
[1733239861155,0.15017565,96235.0,96227.0,0.207839]
[1733239861156,0.00017565,96235.0,96227.0,0.207839]
[1733239861374,0.00017565,96235.0,96219.0,0.18955207]
[1733239861375,0.00017565,96235.0,96229.0,0.207837]
[1733239861592,0.00017565,96235.0,96231.0,0.207833]
[1733239861826,0.00017565,96235.0,96234.0,0.207826]
[1733239862031,0.00017565,96235.0,96234.0,0.20966503]
[1733239863151,0.00117565,96235.0,96234.0,0.22766503]
[1733239863417,0.00117565,96235.0,96234.0,0.225826]
[1733239863618,0.00017565,96235.0,96234.0,0.216826]
[1733239863881,0.0017262,96239.0,96236.0,0.207821]
[1733239864098,0.00231158,96239.0,96238.0,0.207818]
[1733239864349,0.0029471,96247.0,96242.0,0.207807]
[1733239864572,0.0029471,96247.0,96245.0,0.225386]
[1733239865012,0.0029471,96247.0,96246.0,0.18031446]
[1733239865231,0.0029471,96247.0,96244.0,0.18031446]
[1733239865470,0.0029471,96247.0,96246.0,0.13517219]
[1733239865726,0.041607,96314.0,96246.0,0.13517219]
[1733239865727,0.207719,96284.0,96252.0,0.2]
[1733239865967,0.256909,96283.0,96254.0,0.1633]
[1733239866182,0.20746207,96259.0,96254.0,0.1633]
[1733239866429,0.207759,96266.0,96254.0,0.1633]
[1733239866430,0.00219641,96265.0,96254.0,0.1642934]
[1733239866656,0.10471259,96264.0,96254.0,0.1633]
[1733239866902,0.10471259,96264.0,96255.0,0.03633]
[1733239866903,0.00219641,96263.0,96255.0,0.03633]
[1733239867133,0.00219641,96263.0,96246.0,0.1633]
[1733239867134,0.10471259,96262.0,96246.0,0.1633]
[1733239867376,0.22498694,96260.0,96236.0,0.13647078]
[1733239867589,0.207809,96242.0,96228.0,0.13647078]
[1733239867819,0.0008629,96235.0,96234.0,0.13647078]
[1733239869427,0.0008629,96235.0,96234.0,0.14547078]
[1733239869675,0.0008629,96235.0,96234.0,0.65602258]
[1733239869934,0.0008629,96235.0,96234.0,0.73428337]
[1733239870643,0.00219641,96274.0,96258.0,0.2]
[1733239870889,0.0499,96305.0,96261.0,0.53569968]
[1733239871159,0.207677,96304.0,96261.0,0.76511227]
[1733239871404,0.00219641,96300.0,96261.0,0.76511227]
[1733239871649,0.00219641,96304.0,96261.0,0.91511227]
[1733239871908,0.0827,96309.0,96261.0,0.91511227]
[1733239872145,0.00219641,96308.0,96261.0,0.92411227]
[1733239872388,0.207656,96313.0,96293.0,0.13470788]
[1733239872612,0.106909,96312.0,96294.0,0.05347079]
[1733239873040,0.106909,96312.0,96294.0,0.25347079]
[1733239873268,0.106909,96312.0,96295.0,0.33470788]
[1733239873269,0.00219641,96312.0,96295.0,0.33470788]
[1733239873481,0.001,96313.0,96295.0,0.33470788]
[1733239873732,0.00219641,96312.0,96295.0,0.33470788]
[1733239873944,0.00219641,96312.0,96296.0,0.2]
[1733239874638,0.207676,96304.0,96296.0,0.2]
[1733239874858,0.00219641,96303.0,96297.0,0.03396958]
[1733239875083,0.00219641,96307.0,96297.0,0.03396958]
[1733239875336,0.00219641,96306.0,96297.0,0.03396958]
[1733239876054,0.00219641,96306.0,96300.0,0.0009948]
[1733239876366,0.15,96310.0,96300.0,0.0009948]
[1733239876367,0.00219641,96309.0,96300.0,0.0009948]
[1733239876585,0.00219641,96308.0,96301.0,0.03736723]
[1733239877545,0.15219641,96310.0,96300.0,0.0009948]
[1733239877743,0.00219641,96309.0,96301.0,0.009]
[1733239878416,0.207667,96308.0,96301.0,0.009]
[1733239878634,0.00219641,96307.0,96300.0,0.0039948]
[1733239879006,0.15,96301.0,96300.0,0.0009948]
[1733239879154,0.15,96299.0,96277.0,0.13470788]
[1733239879397,0.15,96294.0,96267.0,0.13470788]
[1733239879611,0.10305525,96301.0,96267.0,0.13470788]
[1733239879612,0.207725,96281.0,96277.0,0.0009822]
[1733239879863,0.207705,96290.0,96268.0,0.04245185]
[1733239879864,0.207733,96277.0,96268.0,0.04245185]
[1733239880077,0.106909,96276.0,96268.0,0.04245185]
[1733239881011,0.106909,96276.0,96270.0,0.0009835]
[1733239881233,0.10708454,96276.0,96270.0,0.0009835]
[1733239881455,0.10708454,96276.0,96270.0,0.03455264]
[1733239881894,0.00017554,96276.0,96270.0,0.03455264]
[1733239882808,0.00237195,96276.0,96270.0,0.03555264]
[1733239883064,0.39235059,96275.0,96270.0,0.0019835]
[1733239883283,0.0495,96271.0,96270.0,0.0089835]
[1733239883513,0.0495,96271.0,96270.0,0.008]
[1733239883514,0.514155,96271.0,96270.0,0.008]
[1733239883742,0.51195859,96271.0,96270.0,0.008]
[1733239884163,0.51195859,96271.0,96255.0,0.000982]
[1733239884164,0.357779,96256.0,96255.0,0.000982]
[1733239884242,0.35782,96237.0,96236.0,0.0896582]
[1733239884465,0.51163259,96237.0,96236.0,0.0896582]
[1733239884690,0.51163259,96237.0,96236.0,0.0396582]
[1733239884691,0.47843259,96237.0,96236.0,0.0396582]
[1733239884917,0.25471259,96237.0,96229.0,0.08394551]
[1733239885133,0.15,96229.0,96226.0,0.17931641]
[1733239885366,0.207835,96230.0,96226.0,0.17931641]
[1733239885367,0.15,96227.0,96226.0,0.17931641]
[1733239885585,0.256909,96227.0,96226.0,0.05121641]
[1733239885803,0.25471259,96227.0,96226.0,0.05121641]
[1733239886253,0.1495,96215.0,96214.0,0.0009879]
[1733239886462,0.15169641,96215.0,96214.0,0.0009879]
[1733239886702,0.10471259,96227.0,96214.0,0.0009879]
[1733239886929,0.10471259,96226.0,96214.0,0.0009879]
[1733239887177,0.10471259,96226.0,96214.0,0.2009879]
[1733239887178,0.00219641,96225.0,96214.0,0.2009879]
[1733239887415,0.20785,96223.0,96215.0,0.02009879]
[1733239887653,0.10471259,96223.0,96215.0,0.02009879]
[1733239887875,0.00219641,96222.0,96215.0,0.02009879]
[1733239888092,0.00219641,96226.0,96215.0,0.02009879]
[1733239888306,0.00219641,96225.0,96215.0,0.02009879]
[1733239888541,0.15219641,96229.0,96216.0,0.04210867]
[1733239888768,0.02070554,96242.0,96221.0,0.2]
[1733239888769,0.00219641,96228.0,96221.0,0.2]
[1733239888968,0.00219641,96238.0,96221.0,0.2]
[1733239889210,0.15,96236.0,96221.0,0.2]
[1733239889417,0.15,96234.0,96221.0,0.2]
[1733239889623,0.00219641,96233.0,96222.0,0.02909083]
[1733239889848,0.15,96234.0,96222.0,0.22909083]
[1733239890066,0.00219641,96233.0,96222.0,0.02909083]
[1733239890273,0.001,96223.0,96222.0,0.02909083]
[1733239890543,0.00219641,96241.0,96226.0,0.2]
[1733239890757,0.15,96239.0,96223.0,0.53470788]
[1733239890970,0.00219641,96238.0,96231.0,0.000983]
[1733239891422,0.00419641,96238.0,96231.0,0.000983]
[1733239891628,0.00419641,96238.0,96232.0,0.0200983]
[1733239891867,0.00219641,96238.0,96232.0,0.0200983]
[1733239892087,0.207822,96236.0,96232.0,0.0200983]
[1733239892305,0.207826,96234.0,96232.0,0.0200983]
[1733239892516,0.00219641,96233.0,96232.0,0.15480618]
[1733239892738,0.00219641,96233.0,96232.0,0.15539156]
[1733239892970,0.00219641,96233.0,96232.0,0.13529326]
[1733239893218,0.256909,96233.0,96232.0,0.13529326]
[1733239893470,0.25471259,96233.0,96232.0,0.00058538]
[1733239893684,0.25471259,96233.0,96232.0,0.00258538]
[1733239894594,0.25571259,96233.0,96232.0,0.00258538]
[1733239895240,0.25571259,96233.0,96232.0,0.00058538]
[1733239898626,0.20788,96209.0,96203.0,0.0017258]
[1733239898834,0.15,96204.0,96203.0,0.00190145]
[1733239899073,0.256909,96204.0,96203.0,0.00190145]
[1733239899328,0.15,96183.0,96175.0,0.12478505]
[1733239899566,0.00219641,96182.0,96181.0,0.00017575]
[1733239899791,0.256909,96182.0,96181.0,0.00017575]
[1733239900037,0.25471259,96182.0,96181.0,0.00017575]
[1733239901879,0.26071259,96182.0,96181.0,0.00017575]
[1733239902324,0.26171259,96182.0,96181.0,0.00117575]
[1733239902549,0.007,96182.0,96181.0,0.00117575]
[1733239902760,0.29527291,96182.0,96181.0,0.00017575]
[1733239902986,0.2940765,96182.0,96181.0,0.00017575]
[1733239903464,0.2860765,96182.0,96181.0,0.00017575]
[1733239903697,0.2870765,96182.0,96181.0,0.00017575]
[1733239903906,0.2830765,96182.0,96181.0,0.00017575]
[1733239904333,0.2850765,96182.0,96181.0,0.00017575]
[1733239904546,0.2850765,96182.0,96181.0,0.00190135]
[1733239904547,0.002,96182.0,96181.0,0.00190135]
[1733239904784,0.00219641,96189.0,96181.0,0.01003411]
[1733239905022,0.15,96190.0,96181.0,0.01003411]
[1733239905023,0.00219641,96190.0,96181.0,0.01003411]
[1733239905232,0.01077711,96205.0,96181.0,0.41003411]
[1733239905233,0.001,96182.0,96181.0,0.41003411]
[1733239905668,0.10471259,96182.0,96181.0,0.00190135]
[1733239905882,0.10571259,96182.0,96181.0,0.00190135]
[1733239906118,0.106909,96182.0,96181.0,0.00190135]
[1733239906580,0.257909,96182.0,96181.0,0.00790135]
[1733239906808,0.257909,96182.0,96146.0,0.12478505]
[1733239906809,0.415882,96181.0,96146.0,0.12478505]
[1733239907017,0.25471259,96175.0,96146.0,0.12478505]
[1733239907276,0.46266659,96175.0,96146.0,0.12478505]
[1733239907489,0.46266659,96175.0,96150.0,0.09039849]
[1733239907490,0.357978,96164.0,96150.0,0.09039849]
[1733239907727,0.357978,96164.0,96144.0,0.12478505]
[1733239907728,0.46269059,96164.0,96144.0,0.12478505]
[1733239908391,0.46269059,96164.0,96144.0,0.32478505]
[1733239908392,0.25471259,96164.0,96144.0,0.32478505]
[1733239909073,0.15,96172.0,96155.0,0.0754]
[1733239909293,0.003,96164.0,96155.0,0.0754]
[1733239909788,0.006,96164.0,96155.0,0.0754]
[1733239910011,0.006,96164.0,96160.0,0.2]
[1733239910223,0.003,96164.0,96163.0,0.0218975]
[1733239910441,0.003,96164.0,96163.0,0.002725]
[1733239910940,0.00080027,96164.0,96162.0,0.12478505]
[1733239911157,0.01077925,96182.0,96165.0,0.19486226]
[1733239911392,0.01077925,96182.0,96175.0,0.19486226]
[1733239911632,0.00219641,96185.0,96175.0,0.19486226]
[1733239911845,0.15,96183.0,96175.0,0.19486226]
[1733239912112,0.15,96181.0,96165.0,0.19486226]
[1733239912351,0.15,96179.0,96169.0,0.19486226]
[1733239912558,0.00219641,96178.0,96169.0,0.19486226]
[1733239913249,0.00219641,96178.0,96162.0,0.12478505]
[1733239913250,0.20796,96172.0,96165.0,0.003]
[1733239913501,0.15219641,96171.0,96163.0,0.19486226]
[1733239913704,0.15219641,96171.0,96169.0,0.004]
[1733239914188,0.15219641,96171.0,96162.0,0.12478505]
[1733239914398,0.15219641,96171.0,96144.0,0.06397977]
[1733239914399,0.15,96169.0,96144.0,0.06397977]
[1733239914610,0.22498694,96154.0,96144.0,0.06397977]
[1733239914907,0.22498694,96160.0,96140.0,0.2]
[1733239915146,0.25471259,96159.0,96140.0,0.2]
[1733239915632,0.15,96157.0,96139.0,0.0121]
[1733239915874,0.208025,96143.0,96139.0,0.0126868]
[1733239916105,0.00219641,96142.0,96140.0,0.002]
[1733239916310,0.208027,96141.0,96139.0,0.0126868]
[1733239916560,0.00219641,96140.0,96139.0,0.0126868]
[1733239916795,0.208016,96147.0,96139.0,0.0126868]
[1733239916796,0.00219641,96142.0,96139.0,0.0126868]
[1733239917019,0.00219641,96141.0,96139.0,0.0136868]
[1733239917221,0.00219641,96145.0,96139.0,0.03488681]
[1733239917491,0.15,96146.0,96139.0,0.03488681]
[1733239917492,0.001,96142.0,96140.0,0.007]
[1733239917693,0.001,96142.0,96140.0,0.0063]
[1733239918336,0.15,96147.0,96140.0,0.00542315]
[1733239918337,0.14953856,96147.0,96140.0,0.00542315]
[1733239918555,0.208022,96144.0,96139.0,0.0045868]
[1733239918809,0.19208694,96142.0,96139.0,0.0045868]
[1733239919033,0.12302273,96142.0,96140.0,0.01212261]
[1733239919250,0.20610674,96145.0,96142.0,0.00083728]
[1733239919495,0.20322608,96145.0,96143.0,0.01212261]
[1733239919708,0.20096277,96145.0,96144.0,0.01212261]
[1733239919969,0.20096277,96145.0,96144.0,0.00984135]
[1733239920444,0.15,96157.0,96142.0,0.00083728]
[1733239920709,0.15,96157.0,96142.0,0.07883728]
[1733239920971,0.6367,96234.0,96156.0,0.2]
[1733239920972,0.3354,96201.0,96156.0,0.2]
[1733239921243,0.207935,96184.0,96165.0,0.19486226]
[1733239921482,0.207946,96179.0,96165.0,0.19486226]
[1733239921721,0.207935,96184.0,96165.0,0.19486226]
[1733239921931,0.207935,96184.0,96166.0,0.0786]
[1733239922149,0.15,96187.0,96167.0,0.02734623]
[1733239922368,0.15,96177.0,96167.0,0.02734623]
[1733239922775,0.15,96175.0,96157.0,0.0121]
[1733239923011,0.207973,96166.0,96165.0,0.005]
[1733239923234,0.31268559,96166.0,96165.0,0.001]
[1733239923493,0.31268559,96166.0,96147.0,0.0121]
[1733239923494,0.207993,96157.0,96147.0,0.0121]
[1733239923730,0.22498694,96180.0,96147.0,0.0121]
[1733239923957,0.207958,96174.0,96158.0,0.19486226]
[1733239924210,0.22498694,96190.0,96157.0,0.19486226]
[1733239924450,0.208001,96154.0,96151.0,0.0121]
[1733239924684,0.416002,96154.0,96151.0,0.0121]
[1733239924914,0.207995,96156.0,96151.0,0.0121]
[1733239925204,0.15,96169.0,96152.0,0.00086602]
[1733239925205,0.01080562,96167.0,96152.0,0.00086602]
[1733239925463,0.15,96163.0,96153.0,0.02078283]
[1733239925723,0.20798,96164.0,96152.0,0.00086602]
[1733239925724,0.15,96154.0,96152.0,0.00086602]
[1733239926186,0.10316287,96154.0,96153.0,0.19486226]
[1733239926412,0.01080506,96173.0,96153.0,0.19486226]
[1733239926647,0.001,96163.0,96154.0,0.0121]
[1733239926881,0.001,96163.0,96155.0,0.02078283]
[1733239927336,0.207994,96157.0,96155.0,0.02078283]
[1733239927569,0.207984,96161.0,96155.0,0.02078283]
[1733239927824,0.207995,96156.0,96155.0,0.02078283]
[1733239928589,0.15,96167.0,96155.0,0.02078283]
[1733239928830,0.15,96167.0,96161.0,0.09070545]
[1733239929102,0.15,96167.0,96163.0,0.09070545]
[1733239929338,0.15,96167.0,96164.0,0.09070545]
[1733239929585,0.15,96171.0,96165.0,0.13605817]
[1733239929830,0.15,96169.0,96168.0,0.09075649]
[1733239930616,0.357969,96168.0,96167.0,0.2267781]
[1733239930850,0.357969,96168.0,96167.0,0.13617237]
[1733239931083,0.15,96167.0,96166.0,0.04745435]
[1733239931315,0.15,96165.0,96164.0,0.18156316]
[1733239931553,0.357978,96164.0,96162.0,0.0017264]
[1733239931780,0.25471259,96163.0,96162.0,0.0017264]
[1733239932252,0.30757089,96163.0,96162.0,0.0017264]
[1733239932482,0.25471259,96163.0,96162.0,0.0017264]
[1733239932965,0.25471259,96163.0,96153.0,0.005253]
[1733239932966,0.15513774,96155.0,96153.0,0.005253]
[1733239933198,0.15513774,96155.0,96141.0,0.22704627]
[1733239933199,0.00513774,96143.0,96142.0,0.18163702]
[1733239933444,0.00513774,96136.0,96129.0,0.18352422]
[1733239933691,0.46788833,96136.0,96129.0,0.18352422]
[1733239934180,0.36318874,96130.0,96129.0,0.10030462]
[1733239934419,0.46790133,96130.0,96129.0,0.10030462]
[1733239934696,0.48377008,96130.0,96129.0,0.07949962]
[1733239934926,0.46790133,96130.0,96129.0,6.2e-07]
[1733239936106,0.46790133,96130.0,96094.0,0.22724827]
[1733239936107,0.15,96117.0,96094.0,0.22570047]
[1733239936342,0.15,96099.0,96095.0,0.0541681]
[1733239936594,0.10471259,96123.0,96099.0,0.27736226]
[1733239936830,0.208107,96105.0,96100.0,0.03159205]
[1733239937065,0.20811,96103.0,96100.0,0.03159205]
[1733239937520,0.208104,96106.0,96100.0,0.03159205]
[1733239937751,0.10471259,96123.0,96101.0,0.03089543]
[1733239937752,0.15,96108.0,96101.0,0.03089543]
[1733239937992,0.208084,96115.0,96101.0,0.42575769]
[1733239938261,0.208069,96122.0,96113.0,0.19486226]
[1733239938487,0.008,96117.0,96107.0,0.0467]
[1733239938738,0.208098,96109.0,96107.0,0.0467]
[1733239938963,0.208114,96101.0,96099.0,0.0825]
[1733239939191,0.208114,96101.0,96100.0,0.02943973]
[1733239939420,0.01081591,96126.0,96104.0,0.19486226]
[1733239939665,0.15,96112.0,96104.0,0.19486226]
[1733239939900,0.02048146,96128.0,96101.0,0.003]
[1733239939901,0.208078,96118.0,96109.0,0.19486226]
[1733239940128,0.15,96117.0,96109.0,0.19486226]
[1733239940361,0.208088,96113.0,96109.0,0.23434849]
[1733239940617,0.208086,96114.0,96109.0,0.19486226]
[1733239940853,0.208086,96114.0,96106.0,0.2]
[1733239940854,0.2081,96108.0,96106.0,0.2]
[1733239941081,0.208101,96107.0,96106.0,0.2]
[1733239941343,0.16125751,96107.0,96106.0,0.2]
[1733239941574,0.208114,96102.0,96100.0,0.00717591]
[1733239941843,0.208114,96102.0,96100.0,0.00017591]
[1733239942085,0.15,96101.0,96100.0,0.00017591]
[1733239942773,0.15,96101.0,96100.0,0.00517591]
[1733239943232,0.15,96101.0,96100.0,0.00917591]
[1733239943465,0.25471259,96101.0,96100.0,0.00017591]
[1733239943703,0.15,96101.0,96100.0,0.00317591]
[1733239944660,0.15,96101.0,96100.0,0.01017591]
[1733239944891,0.151,96101.0,96100.0,0.01017591]
[1733239945127,0.25571259,96101.0,96100.0,0.01017591]
[1733239945379,0.208127,96095.0,96094.0,0.0017278]
[1733239945605,0.208127,96095.0,96092.0,6e-05]
[1733239945606,0.00513774,96093.0,96092.0,6e-05]
[1733239945856,0.25808395,96093.0,96092.0,6e-05]
[1733239946102,0.46621495,96093.0,96092.0,6e-05]
[1733239946335,0.46284359,96093.0,96092.0,6e-05]
[1733239946570,0.358131,96093.0,96092.0,6e-05]
[1733239946807,0.4833623,96093.0,96092.0,6e-05]
[1733239947025,0.48673366,96093.0,96092.0,6e-05]
[1733239947487,0.49755329,96093.0,96092.0,6e-05]
[1733239948461,0.49755329,96093.0,96092.0,0.00106]
[1733239948462,0.50118193,96093.0,96092.0,0.00106]
[1733239948709,0.43383325,96093.0,96092.0,0.00206]
[1733239948942,0.42683325,96093.0,96092.0,0.00106]
[1733239949192,0.43283325,96093.0,96092.0,0.00106]
[1733239949437,0.44183325,96093.0,96092.0,0.00206]
[1733239949668,0.41783325,96093.0,96092.0,6e-05]
[1733239949899,0.42283325,96093.0,96092.0,6e-05]
[1733239950142,0.42983325,96093.0,96092.0,0.00106]
[1733239950373,0.42283325,96093.0,96092.0,6e-05]
[1733239951323,0.41783325,96093.0,96092.0,6e-05]
[1733239951565,0.39909396,96093.0,96092.0,6e-05]
[1733239951799,0.40054496,96093.0,96092.0,6e-05]
[1733239952316,0.48473884,96093.0,96092.0,6e-05]
[1733239952548,0.46726348,96093.0,96092.0,6e-05]
[1733239953003,0.57009494,96093.0,96092.0,6e-05]
[1733239953230,0.47063484,96093.0,96092.0,6e-05]
[1733239953457,0.47063484,96093.0,96084.0,0.0017264]
[1733239953458,0.21152036,96085.0,96084.0,0.0017264]
[1733239953713,0.31623295,96085.0,96084.0,0.0017264]
[1733239954397,0.38948424,96085.0,96084.0,4e-07]
[1733239954656,0.47023295,96085.0,96084.0,4e-07]
[1733239955135,0.00337136,96067.0,96055.0,0.0017272]
[1733239955368,0.25471259,96067.0,96066.0,0.00190078]
[1733239956283,0.25571259,96067.0,96066.0,0.00190078]
[1733239956531,0.25671259,96067.0,96066.0,0.00950016]
[1733239956748,0.25671259,96067.0,96066.0,0.00190078]
[1733239957792,0.2850765,96067.0,96066.0,0.00190078]
[1733239959955,0.36156136,96066.0,96055.0,0.09243459]
[1733239960177,0.46627395,96066.0,96056.0,0.00759938]
[1733239960401,0.46290259,96066.0,96065.0,0.00932658]
[1733239960663,0.35819,96066.0,96065.0,0.0017272]
[1733239961408,0.35819,96066.0,96055.0,0.0017272]
[1733239961409,0.15,96057.0,96055.0,0.0017272]
[1733239961672,0.15,96057.0,96056.0,0.03983558]
[1733239962135,0.02836391,96067.0,96056.0,0.03983558]
[1733239962136,0.208199,96062.0,96056.0,0.03983558]
[1733239962357,0.208207,96058.0,96057.0,0.0475]
[1733239963311,0.02836391,96067.0,96057.0,0.0475]
[1733239963529,0.02836391,96067.0,96061.0,0.09058231]
[1733239963762,0.208195,96064.0,96057.0,0.0475]
[1733239963985,0.208195,96064.0,96058.0,0.2]
[1733239964239,0.208198,96062.0,96058.0,0.29058231]
[1733239964458,0.208203,96060.0,96057.0,0.24412864]
[1733239964913,0.15,96059.0,96057.0,0.24512864]
[1733239965372,0.15,96059.0,96057.0,0.24412864]
[1733239965608,0.15,96059.0,96058.0,0.001]
[1733239965871,0.208177,96072.0,96058.0,0.001]
[1733239965872,0.22516682,96090.0,96064.0,0.2]
[1733239966116,0.208134,96092.0,96064.0,0.2]
[1733239966117,0.15,96067.0,96064.0,0.2]
[1733239966373,0.15,96060.0,96058.0,0.0792]
[1733239966595,0.358205,96059.0,96058.0,0.0792]
[1733239966822,0.15,96059.0,96058.0,0.27582864]
[1733239967625,0.15,96065.0,96063.0,0.19662864]
[1733239967852,0.358194,96064.0,96063.0,0.19662864]
[1733239968073,0.15,96064.0,96063.0,0.19662864]
[1733239968998,0.358194,96064.0,96063.0,0.19662864]
[1733239971441,0.15,96065.0,96063.0,0.19662864]
[1733239971665,0.001,96067.0,96066.0,0.19662864]
[1733239971889,0.15,96076.0,96067.0,0.19662864]
[1733239972141,0.208184,96069.0,96067.0,0.19662864]
[1733239972369,0.208194,96064.0,96063.0,0.39662864]
[1733239972596,0.358194,96064.0,96063.0,0.39662864]
[1733239973069,0.15,96063.0,96062.0,0.2121]
[1733239973568,0.15,96063.0,96062.0,0.21966978]
[1733239973825,0.15,96063.0,96062.0,0.25131922]
[1733239974062,0.15,96063.0,96062.0,0.2513166]
[1733239974313,0.15,96063.0,96062.0,0.0513166]
[1733239974783,0.15,96063.0,96062.0,0.2392166]
[1733239975004,0.15,96063.0,96062.0,0.00756716]
[1733239975525,0.15,96063.0,96062.0,0.00856716]
[1733239976006,0.25471259,96063.0,96062.0,0.00856716]
[1733239977034,0.25808395,96063.0,96062.0,1.6e-07]
[1733239977716,0.25808395,96063.0,96058.0,0.0017278]
[1733239977717,0.00337136,96059.0,96058.0,0.0017278]
[1733239977949,0.25808395,96059.0,96058.0,8e-07]
[1733239978208,0.25808395,96059.0,96054.0,0.09084424]
[1733239978209,0.36158536,96055.0,96054.0,0.00943655]
[1733239978447,0.36158536,96055.0,96048.0,0.13628467]
[1733239978448,0.00337136,96049.0,96048.0,0.13628467]
[1733239978698,0.00337136,96049.0,96048.0,0.05299267]
[1733239978699,0.25808395,96049.0,96048.0,0.05299267]
[1733239978961,0.2875985,96049.0,96048.0,0.03216967]
[1733239979192,0.36160836,96044.0,96043.0,0.0017272]
[1733239979425,0.46632095,96044.0,96043.0,0.0017272]
[1733239979675,0.50072248,96044.0,96043.0,0.0017272]
[1733239979897,0.36161736,96040.0,96039.0,2.1e-07]
[1733239980125,0.46632995,96040.0,96039.0,1.1e-07]
[1733239981328,0.47195859,96040.0,96039.0,1.1e-07]
[1733239981604,0.46295859,96040.0,96039.0,1.1e-07]
[1733239982090,0.217246,96040.0,96039.0,1.1e-07]
[1733239982357,0.217246,96040.0,96039.0,0.03216012]
[1733239982358,0.009,96040.0,96039.0,0.03216012]
[1733239982637,0.013,96040.0,96039.0,0.22878876]
[1733239982909,0.013,96040.0,96039.0,0.53350135]
[1733239982910,0.00213879,96040.0,96039.0,0.53350135]
[1733239983151,0.208216,96054.0,96052.0,0.2]
[1733239983357,0.22516682,96060.0,96053.0,0.199]
[1733239983587,0.208212,96056.0,96053.0,0.199]
[1733239983829,0.416424,96056.0,96053.0,0.199]
[1733239984058,0.208224,96050.0,96049.0,0.199]
[1733239984289,0.208224,96050.0,96048.0,0.19662864]
[1733239984290,0.15,96049.0,96048.0,0.39562864]
[1733239984812,0.002,96054.0,96053.0,0.39562864]
[1733239985038,0.002,96054.0,96053.0,0.5107915]
[1733239985522,0.208174,96074.0,96062.0,0.199]
[1733239985760,0.208183,96070.0,96062.0,0.2488]
[1733239985993,0.20819,96066.0,96062.0,0.2488]
[1733239986232,0.208183,96070.0,96062.0,0.2488]
[1733239986462,0.001,96056.0,96039.0,1.1e-07]
[1733239986756,0.358244,96041.0,96039.0,1.1e-07]
[1733239986986,0.46295659,96041.0,96039.0,1.1e-07]
[1733239987441,0.46632795,96041.0,96039.0,1.1e-07]
[1733239987672,0.25808395,96040.0,96039.0,1.1e-07]
[1733239988426,0.21163936,96030.0,96029.0,6.1e-07]
[1733239988662,0.46735195,96030.0,96029.0,6.1e-07]
[1733239989619,0.46298059,96030.0,96029.0,6.1e-07]
[1733239989842,0.46398059,96030.0,96029.0,6.1e-07]
[1733239990071,0.47335195,96030.0,96029.0,6.1e-07]
[1733239990886,0.358302,96014.0,96009.0,0.09122128]
[1733239991144,0.25471259,96013.0,96007.0,0.09122128]
[1733239991376,0.25808395,96013.0,96006.0,0.09122128]
[1733239991622,0.208322,96005.0,96002.0,0.0017272]
[1733239991867,0.358326,96003.0,96002.0,0.0017272]
[1733239992121,0.46640995,96003.0,96002.0,0.0017272]
[1733239992625,0.46640995,96003.0,95996.0,0.22807507]
[1733239992626,0.15437136,95997.0,95996.0,0.02872008]
[1733239992863,0.15437136,95997.0,95973.0,0.40419046]
[1733239992864,0.00337136,95991.0,95990.0,0.12011168]
[1733239993150,0.54901335,95991.0,95990.0,0.09927568]
[1733239993341,0.58441488,95991.0,95990.0,0.06529702]
[1733239993567,0.58441488,95991.0,95961.0,0.0017286]
[1733239993568,0.00437136,95971.0,95970.0,0.13685379]
[1733239993825,0.26724608,95971.0,95970.0,0.01111378]
[1733239994288,0.30161694,95971.0,95970.0,0.01111378]
[1733239994518,0.30161694,95971.0,95961.0,0.0017286]
[1733239994519,0.00437136,95969.0,95961.0,0.0017286]
[1733239994745,0.00437136,95962.0,95961.0,8e-07]
[1733239994980,0.00437136,95962.0,95951.0,2e-07]
[1733239994981,0.00437136,95952.0,95951.0,2e-07]
[1733239995215,0.25908395,95952.0,95951.0,2e-07]
[1733239995669,0.25571259,95952.0,95951.0,2e-07]
[1733239995906,0.25908395,95952.0,95951.0,2e-07]
[1733239996154,0.25908395,95952.0,95951.0,0.00058323]
[1733239996620,0.358474,95935.0,95932.0,0.0008648]
[1733239996848,0.46318659,95935.0,95934.0,0.01453146]
[1733239997069,0.46318659,95935.0,95934.0,0.09143146]
[1733239997070,0.358474,95935.0,95934.0,0.09143146]
[1733239997748,0.46318659,95935.0,95934.0,0.09143146]
[1733239997966,0.46318659,95935.0,95934.0,0.01453146]
[1733239998469,0.51809766,95935.0,95934.0,0.01453146]